Cogmind - Beta 13 *** ADVENTURER MODE // 2024.04.28 @ 02:24:00 Player: swetpototo Result: Destroyed self via exploding Power Conduit Performance ------------- Evolutions (3) 1500 Regions Visited (4) 800 Robots Destroyed (56) 280 Value Destroyed (1886) 1886 Prototype IDs (1) 20 Alien Tech Used (0) 0 Bonus (418) 418 TOTAL SCORE: 4904 Bonus ------- Pacifist 200 High Alert Combat Kills 218 Cogmind --------- Core Integrity 0/700 Matter 207/300 Energy 154/160 System Corruption 2% Temperature Cool (95) Movement Walking (120) Location -7/Factory Parts ------- > --- POWER (2) -------- Light Nuclear Core > --- PROPULSION (4) --- Carbon-fiber Leg Carbon-fiber Leg > --- UTILITY (4) ------ (None) > --- WEAPON (3) ------- Gauss Rifle Advanced Assault Cannon > --- INVENTORY (5) ---- Nuclear Core Improved Deuterium Engine Aluminum Leg Small Storage Unit Advanced Weight Redist. System Peak State ------------ > --- POWER ------------ Improved Deuterium Engine Micro Nuclear Core > --- PROPULSION ------- Improved Treads Improved Treads Improved Treads Armored Treads > --- UTILITY ---------- Medium Armor Plating Heavy Armor Plating Hacking Suite > --- WEAPON ----------- Enhanced Autogun Heavy Missile Launcher Great Axe > --- INVENTORY -------- Light Nuclear Core Small Storage Unit Advanced Weight Redist. System Light Assault Rifle Heavy Assault Rifle [Rating: 41] Favorites ----------- Power Micro Nuclear Core Engine Improved Deuterium Engine Power Core Micro Nuclear Core Propulsion Improved Treads Treads Improved Treads Leg Titanium Leg Utility Hacking Suite Device Advanced Weight Redist. System Hackware Hacking Suite Protection Medium Armor Plating Weapon Enhanced Autogun Ballistic Gun Enhanced Autogun Ballistic Cannon Advanced Assault Cannon Launcher Heavy Missile Launcher Impact Weapon Great Maul Slashing Weapon Chainsword Build | -11 -10 -9 -8 -7 ------- Run | Yrd Mat Mat Mat Fac Slots Evolved 6 | . . 2 2 2 Power 1 | . . . . 1 Propulsion 2 | . . 2 . . Utility 2 | . . . 2 . Weapon 1 | . . . . 1 Parts Attached 48 | 4 . 10 4 30 Power 8 | 1 . 1 1 5 Engine 4 | 1 . 1 . 2 Core 4 | . . . 1 3 Reactor . | . . . . . Propulsion 19 | 2 . 6 2 9 Treads 7 | . . 2 . 5 Leg 12 | 2 . 4 2 4 Wheel . | . . . . . Hover . | . . . . . Flight . | . . . . . Utility 6 | . . . 1 5 Device 1 | . . . . 1 Storage . | . . . . . Processor . | . . . . . Hackware 2 | . . . 1 1 Protection 3 | . . . . 3 Artifact . | . . . . . Weapon 15 | 1 . 3 . 11 Energy Gun . | . . . . . Energy Cannon . | . . . . . Ballistic Gun 9 | 1 . 2 . 6 Ballistic Cannon 1 | . . . . 1 Launcher 2 | . . 1 . 1 Special Weapon . | . . . . . Impact Weapon 1 | . . . . 1 Slashing Weapon 2 | . . . . 2 Piercing Weapon . | . . . . . Special Melee Weapon . | . . . . . Unidentified Prototypes 1 | . . . . 1 Parts Lost 26 | . . 3 3 20 Power 5 | . . 2 . 3 Propulsion 9 | . . . 3 6 Utility 4 | . . . . 4 Weapon 8 | . . 1 . 7 Highest Loss Streak 12 | . . 2 3 12 To Critical Strikes . | . . . . . Average Slot Usage (%) 62 | . 54 53 55 68 Engine 4 | . 14 5 . 3 Core 5 | . . . 8 6 Treads 13 | . . 7 . 20 Leg 13 | . 26 28 33 2 Hackware 3 | . . . 3 5 Protection 5 | . . . . 8 Ballistic Gun 7 | . 14 10 . 7 Launcher 4 | . . 1 9 4 Slashing Weapon 2 | . . . . 3 Naked Turns . | . . . . . Heaviest Build 52 | 4 4 11 8 52 Greatest Support 101 | 20 20 68 51 101 Greatest Overweight (x) 2 | . 1 1 2 2 Average Overweight (x) . | . . . . . Largest Inventory Capacity 5 | 5 5 5 5 5 Average Capacity 5 | 5 5 5 5 5 Most Carried 5 | 3 4 5 5 5 Average Carried 4 | 1 2 3 4 4 Final Capacity 5 | 5 5 5 5 5 Final Carried 5 | 2 4 5 5 5 Class Distribution -------------------- 48% | Hacker-Mutant 44% | Mutant 5% | Scavenger-Gunner Dominant Class ---------------- Mutant | -10/Materials Mutant | -9/Materials Hacker-Mutant | -8/Materials Hacker-Mutant | -7/Factory Resources | -11 -10 -9 -8 -7 ----------- Run | Yrd Mat Mat Mat Fac Matter Collected 1208 | 224 . 196 23 765 Remotely . | . . . . . Salvage Created 1446 | . . 251 79 1116 Parts 103 | . . 17 7 79 Haulers Intercepted . | . . . . . Recyclers Shooed 2 | . . . . 2 Parts Field Recycled . | . . . . . Retrieved Matter . | . . . . . Parts Self-Destructed . | . . . . . Prevented . | . . . . . Kills | -11 -10 -9 -8 -7 ------- Run | Yrd Mat Mat Mat Fac Combat Hostiles Destroyed 43 | . . 7 3 33 Melee 3 | . . . . 3 Guns 16 | . . 7 . 9 Cannons 6 | . . . . 6 AOE 18 | . . . 3 15 Classes Destroyed 12 | . . 4 . 8 Worker 6 | . . . . 6 Builder 2 | . . . . 2 Tunneler 1 | . . . . 1 Recycler 2 | . . . . 2 Watcher 2 | . . 1 . 1 Swarmer 17 | . . 3 . 14 Grunt 11 | . . 2 2 7 Duelist 1 | . . . . 1 Protector 1 | . . . . 1 Sentry 6 | . . 2 1 3 Hunter 5 | . . . . 5 Programmer 2 | . . . . 2 Best Kill Streak 8 | . . 8 3 8 Combat Bots Only 7 | . . 7 3 7 Max Kills in Single Turn 6 | . . 1 1 6 Gunslinging . | . . . . . Exploded 6 | . . . 1 6 Melee 1 | . . . . 1 Uniques/NPCs Destroyed . | . . . . . Combat | -11 -10 -9 -8 -7 -------- Run | Yrd Mat Mat Mat Fac Hostile Shots Fired 707 | . . 155 45 507 Missed 257 | . . 50 18 189 Damage Taken 4930 | . . 1028 371 3531 Core 946 | . . 133 78 735 Absorbed by Shields . | . . . . . Ignored by Resistances 1422 | . . 298 104 1020 Core Remaining (%) 87 | 100 100 66 85 . Volleys Fired 87 | . 1 20 8 58 Largest 3 | . 1 2 1 3 Hottest 101 | . 20 50 30 101 Shots Fired 136 | . 1 26 8 101 Gun 92 | . 1 26 . 65 Cannon 24 | . . . . 24 Launcher 20 | . . . 8 12 Special . | . . . . . Kinetic 116 | . 1 26 . 89 Thermal . | . . . . . Explosive 20 | . . . 8 12 Electromagnetic . | . . . . . Robot Hit Streak 24 | . . 9 15 24 Robot Miss Streak 4 | . . 2 . 4 Penetration Max . | . . . . . Secondary Targets 2 | . . 1 . 1 Max Gunslinging Chain 1 | . . 1 . 1 Shots Hit Robots 111 | . . 22 6 83 Core Hits 88 | . 1 10 7 70 Critical Kills 1 | . . . . 1 Critical Parts Destroyed . | . . . . . Critical Strikes 2 | . . . . 2 Destroy 1 | . . . . 1 Blast 1 | . . . . 1 Melee Attacks 9 | . . . . 9 Impact . | . . . . . Slashing 9 | . . . . 9 Piercing . | . . . . . Sneak Attacks 2 | . . . . 2 Combat Hostiles . | . . . . . Follow-up Attacks . | . . . . . Damage Inflicted 4957 | . 7 379 258 4313 Guns 1128 | . 7 379 . 742 Cannons 459 | . . . . 459 Explosions 2982 | . . . 258 2724 Melee 388 | . . . . 388 Ramming . | . . . . . Kinetic 1587 | . 7 379 . 1201 Thermal 846 | . . . . 846 Explosive 2136 | . . . 258 1878 Electromagnetic . | . . . . . Impact . | . . . . . Slashing 388 | . . . . 388 Piercing . | . . . . . Highest Corruption 2 | . . . . 2 Average Corruption 1 | . . . . 1 Corruption Purged . | . . . . . Corruption Blocked . | . . . . . Effects 2 | . . . . 2 Matter Fused 2 | . . . . 2 Overload Shots . | . . . . . Overflow Damage 364 | . . . . 364 Projectiles 3 | . . . . 3 Explosions 332 | . . . . 332 Melee 29 | . . . . 29 Knockbacks 6 | . . . . 6 Impact . | . . . . . Kinetic 5 | . . . . 5 Secondary 1 | . . . . 1 Self-Inflicted Damage 600 | . . . 24 576 Shots 14 | . . . 1 13 Rammed . | . . . . . Targets Rammed . | . . . . . Kicked . | . . . . . Crushed . | . . . . . Highest Temperature 125 | . . 85 18 125 Average Temperature 32 | . . 27 7 34 Received Heat Transfer 1137 | . . 492 288 357 Siege Activations . | . . . . . Robots Corrupted . | . . . . . Combat Hostiles . | . . . . . Parts Fried . | . . . . . Impact Corruptions . | . . . . . Robots Melted . | . . . . . Combat Hostiles . | . . . . . Parts Melted 1 | . . . . 1 Heat Transferred 550 | . . . . 550 Parts Sabotaged . | . . . . . Parts Stolen . | . . . . . Parts Stripped . | . . . . . Power Chain Reactions . | . . . . . Alert | -11 -10 -9 -8 -7 ------- Run | Yrd Mat Mat Mat Fac Peak Influence 704 | . 16 197 236 704 Initial 83 | . . 5 70 83 Average 221 | . 15 91 160 308 Maximum Alert Level 3 | . . . 1 3 Low Security (%) 65 | 100 100 100 41 54 Level 1 11 | . . . 58 6 Level 2 22 | . . . . 38 Level 3 . | . . . . . Level 4 . | . . . . . Level 5 . | . . . . . High Security . | . . . . . Max Security . | . . . . . Squads Dispatched 8 | . . . 1 7 Investigation 1 | . . . . 1 Extermination . | . . . . . Reinforcement 5 | . . . 1 4 Assault . | . . . . . Garrison 2 | . . . . 2 Intercept . | . . . . . Searches Triggered . | . . . . . Construction Impeded 2 | . . . . 2 Haulers Reinforced . | . . . . . Active Scanning Responses . | . . . . . Cargo Convoy Interrupts 1 | . . . . 1 Stealth | -11 -10 -9 -8 -7 --------- Run | Yrd Mat Mat Mat Fac Distress Signals 5 | . 1 1 2 1 Communications Jammed . | . . . . . Distress Signals . | . . . . . Times Spotted 65 | . . 13 10 42 Peak Tracking Total 11 | . . 11 7 8 Tactical Retreats 3 | . . 1 . 2 Traps | -11 -10 -9 -8 -7 ------- Run | Yrd Mat Mat Mat Fac Traps Triggered 2 | . . . 1 1 Indirectly . | . . . . . Trap Hack Attempts . | . . . . . Triggered . | . . . . . Disarmed . | . . . . . Reprogrammed . | . . . . . Reused . | . . . . . Traps Extracted . | . . . . . Installed . | . . . . . Triggered . | . . . . . Machines | -11 -10 -9 -8 -7 ---------- Run | Yrd Mat Mat Mat Fac Machines Disabled 13 | . . . 1 12 Max in Single Turn 4 | . . . 1 4 Garrison Access 1 | . . . . 1 Machines Repaired . | . . . . . Machines Dismantled . | . . . . . Machines Sabotaged . | . . . . . Overloaded Fab Kills . | . . . . . Hacking | -11 -10 -9 -8 -7 --------- Run | Yrd Mat Mat Mat Fac Machines Accessed 5 | . 1 . 1 3 Terminals 4 | . 1 . 1 2 Fabricators . | . . . . . Repair Stations . | . . . . . Recycling Units . | . . . . . Scanalyzers . | . . . . . Garrison Access 1 | . . . . 1 Total Hacks 9 | . 3 . 2 4 Successful 4 | . 1 . . 3 Failed 5 | . 2 . 2 1 Catastrophic . | . . . . . Database Lockouts . | . . . . . Manual 5 | . 3 . 2 . Terminals 7 | . 3 . 2 2 Fabricators . | . . . . . Repair Stations . | . . . . . Recycling Units . | . . . . . Scanalyzers . | . . . . . Garrison Access 2 | . . . . 2 Terminal Hacks 3 | . 1 . . 2 Part Schematic 1 | . . . . 1 Open DSF 1 | . . . . 1 Level Access Points 1 | . 1 . . . Fabricator Hacks . | . . . . . Repair Station Hacks . | . . . . . Recycling Unit Hacks . | . . . . . Scanalyzer . | . . . . . Garrison Access Hacks 1 | . . . . 1 Seal Access 1 | . . . . 1 Unauthorized Hacks . | . . . . . Terminals . | . . . . . Fabricators . | . . . . . Repair Stations . | . . . . . Recycling Units . | . . . . . Scanalyzers . | . . . . . Garrison Access . | . . . . . Data Cores Recovered . | . . . . . Used . | . . . . . Hacking Detections 4 | . 1 . 1 2 Full Trace Events . | . . . . . Feedback Events . | . . . . . Feedback Blocked . | . . . . . Robot Schematics Acquired . | . . . . . Robots Built . | . . . . . Authchips . | . . . . . Time . | . . . . . Total Robot Build Rating . | . . . . . Part Schematics Acquired 1 | . . . . 1 Parts Built . | . . . . . Authchips . | . . . . . Time . | . . . . . Total Part Build Rating . | . . . . . Parts Repaired . | . . . . . Time . | . . . . . Parts Recycled . | . . . . . Recycled Matter . | . . . . . Retrieved Matter . | . . . . . Retrieved Components . | . . . . . Parts Scanalyzed . | . . . . . Part Schematics Acquired . | . . . . . Parts Damaged . | . . . . . Bothacking | -11 -10 -9 -8 -7 ------------ Run | Yrd Mat Mat Mat Fac Used RIF Installer . | . . . . . Robots Hacked . | . . . . . Non-combat . | . . . . . Combat . | . . . . . Robot Hacks Applied . | . . . . . Relay Couplers Released . | . . . . . Fabnet Peak Effective % . | . . . . . Robots Rewired . | . . . . . Allies Hacked . | . . . . . Hacks Repelled . | . . . . . Allies | -11 -10 -9 -8 -7 -------- Run | Yrd Mat Mat Mat Fac Total Allies . | . . . . . Largest Group . | . . . . . Highest-Rated Group . | . . . . . Highest-Rated Ally . | . . . . . Total Orders . | . . . . . Ally Attacks . | . . . . . Total Damage . | . . . . . Kills . | . . . . . Allies Corrupted . | . . . . . Allies Melted . | . . . . . Intel | -11 -10 -9 -8 -7 ------- Run | Yrd Mat Mat Mat Fac Robot Analysis Total . | . . . . . Derelict Logs Recovered . | . . . . . Drone Launches . | . . . . . Drone Recoveries . | . . . . . Exploration | -11 -10 -9 -8 -7 ------------- Run | Yrd Mat Mat Mat Fac Turns Passed 1727 | 45 139 295 212 1036 Spaces Moved 1001 | 38 112 169 145 537 Core 47 | 14 7 2 2 22 Treads 447 | . . 57 . 390 Legs 507 | 24 105 110 143 125 Wheels . | . . . . . Hover . | . . . . . Flight . | . . . . . Fastest Speed 50 | 50 100 100 130 50 Average Speed 141 | 94 118 139 130 152 Slowest Speed 200 | 120 120 160 150 200 Overloaded Moves . | . . . . . Propulsion Burnouts . | . . . . . Robots Hopped . | . . . . . Cave-ins Triggered . | . . . . . Exploration Rate (%) 19 | 3 33 22 18 22 Regions Visited 4 Branch Regions . Pre-discovered Areas . | . . . . . Known Exits Taken 1 | . 1 . . . Unknown Exits Taken 3 | 1 . 1 1 . Scrap Searched . | . . . . . Spaces Dug 16 | . . . 16 . Terrain Destroyed 257 | . . . 63 194 Melee . | . . . . . Projectile 1 | . . . . 1 AOE 256 | . . . 63 193 Terrain Rammed . | . . . . . Walls Destroyed . | . . . . . Machines Disabled . | . . . . . Actions | -11 -10 -9 -8 -7 --------- Run | Yrd Mat Mat Mat Fac Total 1182 | 47 118 205 158 654 Wait 10 | . . . . 10 Move 997 | 37 111 168 144 537 Hop . | . . . . . Pick Up 18 | 6 3 5 1 3 Fast Attach 30 | . . 4 4 22 Attach 12 | 4 . 4 . 4 Detach 1 | . . . . 1 Swap 6 | . . 2 . 4 Drop 12 | . 3 2 1 6 Fire 87 | . 1 20 8 58 Melee 9 | . . . . 9 Ram . | . . . . . Kick . | . . . . . Crush . | . . . . . Escape Stasis . | . . . . . Rewire . | . . . . . Trap . | . . . . . Miscellaneous . | . . . . . Route ------- -11/Scrapyard -10/Materials (discovered 3 exits: *Mat x3) -9/Materials -8/Materials -7/Factory History --------- Turn | Location | Event 2 | -11/Scrapyard | Met Revision 17 9 | -11/Scrapyard | Discovered new exit (range 14) 46 | -11/Scrapyard | Entered Materials 52 | -10/Materials | Identified exit to Materials 185 | -10/Materials | Entered another Materials area 185 | -9/Materials | Evolved 2 slots: Propulsion x2 330 | -9/Materials | Build established: Mutant 383 | -9/Materials | Destroyed 7 combat bots 468 | -9/Materials | Discovered new exit (range 10) 480 | -9/Materials | Entered another Materials area 480 | -8/Materials | Evolved 2 slots: Utility x2 669 | -8/Materials | Discovered new exit (range 5) 692 | -8/Materials | Entered Factory 692 | -7/Factory | Evolved 2 slots: Power x1, Weapon x1 721 | -7/Factory | Lost 3 parts (3n) 1047 | -7/Factory | Build established: Hacker-Mutant 1341 | -7/Factory | Destroyed 7 combat bots 1410 | -7/Factory | Cargo convoy interrupted 1551 | -7/Factory | Core integrity fell below 50% 1581 | -7/Factory | Lost 12 parts (3p4n2u3w) 1584 | -7/Factory | Core integrity fell below 20% 1595 | -7/Factory | Garrison activated, responded to threat 1654 | -7/Factory | Lost 3 parts (2n1w) 1728 | -7/Factory | Destroyed self via exploding Power Conduit Last Messages --------------- R-06 Scavenger collects Imp. Hover Unit. K-01 Serf collects debris. Slug penetrates H-55 Commando. H-55 Commando destroyed. Acquired 3 matter. K-01 Serf collects debris. Slug penetrates Power Conduit. C-30 ARC bursts open, deploying its payload. G-47 Trooper unfolds itself. Slug penetrates G-47 Trooper. Enh. Autogun destroyed. Slug penetrates Wall. G-47 Trooper destroyed. Slug penetrates Power Conduit. Power Conduit explodes. Destroyed Microactuators. Destroyed Axe. L-41 Fighter Carbon-fiber Leg blasted off. Power Conduit explodes. L-41 Fighter destroyed. Map ----- +----------------------------------------------------+ | ????????????????????????????????????????? | | ????????????????????????????????????????? | | ????????????????????????????????????????? | | ????????????????????????????????????????? | | ????????????????????????????????????????? | | ????????????????????????????????????????? | | ????????????????????????????????????????? | | ????????????????????????????????????????? | | ????????????????????????????????????????? | | ????????????????????????????????????????? | | ???????????????? % ?????????????????????? | | ????????????#??? ##???????????????????? | | ??????????! ??# ????????????????? | | ?????????? #; %! ??????????????? | | ??????????? # =%= ????????????? | | ??????????? # g* ????????????? | | ???????????? # ???????????? | | ???????????? ; ???????????? | | ????????????#;; ??????????? | | ???????######;; ??????????? | | ???????# ;; *% ???????????? | | ???????# ;; """"?????????? | | ???????# ;; ??????????? | | ???????? """ ; """??????????? | | ???????# """ ; ????????? | | ???????# """ ; @ ""???????????? | | ???????# # o ????????? | | ?????????????# """"""""" """??????????? | | ?????????????# ????????? | | ?????????????# """"""""" """??????????? | | ?????????????# ????????? | | ?????????????# """"""""" """"""???????? | | ?????????????# ????? | | ?????????????# """"""""" """"""""" ???? | | ?????????????# ? | | ?????????????# """"""""" """"""""" ? | | ?????????????# | | ?????????????# ??? | | ?????????????# #?????????? | | ?????????????############# #????????## | | ?????????????????# # #######?## | | ?????????????????? """"" + T =#?# " | | ?????????????????? """"" # #?# " | | ???????????????????""" # """" #?# " | | ??????????????????? ?# """" %%%### " | | ??????????????????##+###?# ""%% ## " | | ????????????######## ##### = % ##### | | ????? ! = [%% + | | ????? ##+######## | | ????? ^ ^ ! #! #??## | +----------------------------------------------------+ Best States ------------- Heat Dissipation 34 Energy Generation 26 Energy Capacity 340 Matter Stores 300 Matter Capacity 300 Sight Range 16 Terrain Scan Density 10 Armor Coverage 825 Resistance: KI 20 Resistance: TH 20 Resistance: EX 20 Resistance: EM 20 Resistance: I 20 Resistance: S 20 Resistance: P 20 Evasion (%) 55 Recoil Reduction 4 Offensive Hacking 20 Item Schematics ----------------- Fusion Compressor | -7/Factory | Hacked Robot Schematics ------------------ None Fabricated ------------ Nothing Alien Tech Used ----------------- None Achievements -------------- Quick And Dirty Challenges ------------ None Game ------ Seed SlugPropulsionMace Manual? 0 Play Time 00:18:59 Cumulative 18.1 hours Start 2024.04.28 @ 02:04:55 End 2024.04.28 @ 02:24:00 Sessions 1 Manual Loads 0 Difficulty Adventurer Special Mode None Game No. 34 Rogue 0 Adventurer 34 Explorer 0 Win Type - Total 0 Types 0/0/0/0/0/0/0/0/0 Lore% 5 Gallery% 28 Achievement% 19 Wizard Run 0 Options --------- Layout 0 ASCII 0 Keyboard 0 Movement Mouse Keybinds 0 Fullscreen 1 Font 18/SmallcapsGlow Map View 38x25 Zoom Use 100% Tactical HUD 0 Map Filters NONE Filters NONE Steam 1 RUN: 38b03125-0f93-4bf5-8998-7e8598e76ebd